bitfinex/quotes_SOLUSD_20241223
["timestamp","ask_amount","ask_price","bid_price","bid_amount"]
[1734995044198,0.88006074,192.29,192.23,14.64265755]
[1734995044388,0.88006074,192.29,192.25,14.64265755]
[1734995044604,15.52271829,192.36,192.27,14.64265755]
[1734995044799,0.88006074,192.36,192.29,14.64265755]
[1734995045216,15.52271829,192.36,192.29,14.64265755]
[1734995045615,15.52271829,192.36,192.27,14.64265755]
[1734995046229,15.52271829,192.36,192.29,14.64265755]
[1734995046518,0.88006074,192.36,192.29,14.64265755]
[1734995046726,0.88006074,192.37,192.29,14.64265755]
[1734995047112,8.86916074,192.48,192.36,14.64265755]
[1734995047425,8.86916074,192.48,192.4,14.64265755]
[1734995047804,8.86916074,192.48,192.33,2.32618934]
[1734995047805,14.64265755,192.45,192.36,14.64265755]
[1734995048103,0.88006074,192.44,192.36,14.64265755]
[1734995048920,0.88006074,192.44,192.38,14.64265755]
[1734995049110,15.52271829,192.47,192.38,14.64265755]
[1734995049441,15.52271829,192.47,192.29,2.32618925]
[1734995049442,0.88006074,192.47,192.4,14.64265755]
[1734995050032,0.88006074,192.47,192.42,14.64265755]
[1734995050833,0.88006074,192.47,192.4,14.64265755]
[1734995051136,0.88006074,192.47,192.38,14.64265755]
[1734995051315,14.64265755,192.44,192.36,14.64265755]
[1734995051508,0.88006074,192.43,192.36,14.64265755]
[1734995052004,14.64265755,192.42,192.34,14.64265755]
[1734995052207,14.64265755,192.4,192.32,14.64265755]
[1734995052523,14.64265755,192.38,192.3,14.64265755]
[1734995052829,0.88006074,192.37,192.3,14.64265755]
[1734995053934,0.88006074,192.4,192.34,14.64265755]
[1734995054301,0.88006074,192.43,192.35,23.3900376]
[1734995054920,20.0,192.41,192.33,23.3900376]
[1734995055124,23.3900376,192.42,192.31,23.3900376]
[1734995055125,24.27009834,192.4,192.31,23.3900376]
[1734995055304,24.27009834,192.4,192.26,20.818074]
[1734995055305,20.0,192.37,192.29,23.3900376]
[1734995055506,24.27009834,192.36,192.29,23.3900376]
[1734995055747,24.27009834,192.36,192.27,23.3900376]
[1734995055925,0.88006074,192.36,192.29,23.3900376]
[1734995056228,6.4709,192.42,192.35,23.3900376]
[1734995056448,0.88006074,192.41,192.37,23.3900376]
[1734995056804,0.88006074,192.44,192.37,23.3900376]
[1734995057118,0.88006074,192.44,192.39,23.3900376]
[1734995057610,0.88006074,192.44,192.34,23.3900376]
[1734995057611,23.3900376,192.43,192.34,23.3900376]
[1734995057813,0.88006074,192.42,192.34,23.3900376]
[1734995058124,7.9891,192.48,192.28,23.3900376]
[1734995058125,24.27009834,192.47,192.4,23.3900376]
[1734995058324,0.88006074,192.47,192.4,23.3900376]
[1734995059222,23.3900376,192.43,192.34,23.3900376]
[1734995059413,23.3900376,192.41,192.32,23.3900376]
[1734995059609,0.88006074,192.4,192.32,23.3900376]
[1734995060330,0.88006074,192.4,192.34,23.3900376]
[1734995061637,0.88006074,192.4,192.32,23.3900376]
[1734995062134,0.88006074,192.47,192.34,23.776884]
[1734995062305,0.88006074,192.47,192.43,23.3900376]
[1734995063513,0.88006074,192.48,192.43,23.3900376]
[1734995064837,20.0,192.47,192.39,23.3900376]
[1734995065006,0.62,192.49,192.39,23.3900376]
[1734995065007,0.62,192.49,192.48,20.0]
[1734995065209,0.88006074,192.59,192.48,43.3900376]
[1734995065441,0.88006074,192.59,192.52,23.3900376]
[1734995065641,0.88006074,192.59,192.48,23.3900376]
[1734995065642,23.3900376,192.57,192.48,23.3900376]
[1734995065808,23.3900376,192.55,192.46,23.3900376]
[1734995066008,0.88006074,192.54,192.46,23.3900376]
[1734995066942,23.3900376,192.53,192.46,23.3900376]
[1734995067144,0.88006074,192.52,192.44,23.3900376]
[1734995068021,0.88006074,192.52,192.46,23.3900376]
[1734995068221,0.88006074,192.55,192.5,23.3900376]
[1734995068410,0.88006074,192.56,192.5,23.3900376]
[1734995068611,0.88006074,192.58,192.5,23.3900376]
[1734995069118,23.3900376,192.53,192.46,23.3900376]
[1734995069316,0.88006074,192.52,192.44,23.3900376]
[1734995069526,6.6219,192.6,192.5,23.3900376]
[1734995069527,24.27009834,192.59,192.5,23.3900376]
[1734995069705,0.88006074,192.59,192.53,23.3900376]
[1734995069908,23.3900376,192.57,192.49,23.3900376]
[1734995070239,23.3900376,192.51,192.43,23.3900376]
[1734995070412,0.88006074,192.5,192.43,23.3900376]
[1734995070613,0.88006074,192.5,192.41,23.3900376]
[1734995070808,0.88006074,192.5,192.43,23.3900376]
[1734995071010,23.3900376,192.53,192.45,23.3900376]
[1734995071242,23.3900376,192.57,192.49,23.3900376]
[1734995071422,24.27009834,192.59,192.51,23.3900376]
[1734995072041,23.3900376,192.57,192.49,23.3900376]
[1734995072226,0.88006074,192.56,192.49,23.3900376]
[1734995072423,0.88006074,192.56,192.47,23.3900376]
[1734995072614,23.3900376,192.55,192.47,23.3900376]
[1734995072814,0.88006074,192.54,192.47,23.3900376]
[1734995073427,23.3900376,192.53,192.45,23.3900376]
[1734995073639,23.3900376,192.51,192.41,23.3900376]
[1734995073953,23.3900376,192.49,192.41,23.3900376]
[1734995074143,0.88006074,192.48,192.41,23.3900376]
[1734995074319,0.88006074,192.48,192.43,23.3900376]
[1734995074634,0.88006074,192.48,192.34,2.3534374]
[1734995074946,23.3900376,192.47,192.39,23.3900376]
[1734995075246,0.88006074,192.48,192.43,23.3900376]
[1734995075450,0.88006074,192.49,192.45,23.3900376]
[1734995075611,20.88006074,192.53,192.47,23.3900376]
[1734995075808,20.88006074,192.53,192.49,23.3900376]
[1734995075809,0.88006074,192.53,192.49,23.3900376]
[1734995076038,23.3900376,192.54,192.47,23.3900376]
[1734995076248,0.88006074,192.53,192.48,43.3900376]
[1734995076450,23.3900376,192.61,192.52,23.3900376]
[1734995076612,0.88006074,192.6,192.52,23.3900376]
[1734995076814,23.3900376,192.57,192.48,23.3900376]
[1734995077011,0.88006074,192.56,192.48,23.3900376]
[1734995077557,23.3900376,192.53,192.44,23.3900376]
[1734995077714,23.3900376,192.51,192.44,23.3900376]
[1734995077917,0.88006074,192.5,192.44,23.3900376]
[1734995079060,23.3900376,192.5,192.42,23.3900376]
[1734995079354,23.3900376,192.5,192.36,6.2818]
[1734995079355,23.3900376,192.48,192.4,23.3900376]
[1734995079511,0.88006074,192.47,192.4,23.3900376]
[1734995079704,0.88006074,192.47,192.29,0.77953515]
[1734995079705,23.3900376,192.46,192.38,23.3900376]
[1734995079912,0.88006074,192.45,192.42,23.3900376]
[1734995080150,24.27009834,192.58,192.44,23.3900376]
[1734995080448,24.27009834,192.58,192.43,0.7795559]
[1734995080449,24.27009834,192.58,192.5,23.3900376]
[1734995081414,23.3900376,192.56,192.48,23.3900376]
[1734995081613,0.88006074,192.55,192.48,23.3900376]
[1734995082061,20.0,192.56,192.48,23.3900376]
[1734995082267,0.88006074,192.55,192.48,23.3900376]
[1734995082736,24.27009834,192.55,192.48,23.3900376]
[1734995083267,24.27009834,192.55,192.46,23.3900376]
[1734995083447,23.3900376,192.53,192.46,23.3900376]
[1734995083647,0.88006074,192.52,192.46,23.3900376]
[1734995084772,0.88006074,192.54,192.46,23.3900376]
[1734995085358,23.3900376,192.53,192.46,23.3900376]
[1734995085554,0.88006074,192.52,192.46,23.3900376]
[1734995086473,29.7191376,192.49,192.32,7.8739]
[1734995086778,23.3900376,192.45,192.37,23.3900376]
[1734995086947,0.88006074,192.44,192.32,7.8739]
[1734995087148,0.88006074,192.44,192.38,23.3900376]
[1734995087352,0.88006074,192.44,192.4,23.3900376]
[1734995087556,6.3291,192.49,192.42,23.3900376]
[1734995087852,0.88006074,192.48,192.44,23.3900376]
[1734995088741,0.88006074,192.48,192.42,23.3900376]
[1734995089056,0.88006074,192.48,192.32,7.8739]
[1734995089057,23.3900376,192.46,192.38,23.3900376]
[1734995089256,0.88006074,192.45,192.38,23.3900376]
[1734995089458,23.3900376,192.44,192.36,23.3900376]
[1734995089666,0.88006074,192.43,192.36,23.3900376]
[1734995090061,0.88006074,192.43,192.38,23.3900376]
[1734995090256,23.776884,192.46,192.38,23.3900376]
[1734995090577,0.88006074,192.45,192.38,23.3900376]
[1734995091467,0.88006074,192.46,192.38,23.3900376]
[1734995091876,23.3900376,192.45,192.38,23.3900376]
[1734995092171,23.3900376,192.43,192.36,23.3900376]
[1734995092359,0.88006074,192.42,192.36,23.3900376]
[1734995092973,1.5702,192.41,192.36,23.3900376]
[1734995093181,0.88006074,192.4,192.36,23.3900376]
[1734995095159,0.88006074,192.42,192.36,23.3900376]
[1734995095685,0.88006074,192.42,192.34,23.3900376]
[1734995095870,23.3900376,192.41,192.32,23.3900376]
[1734995096189,6.2389,192.39,192.32,23.3900376]
[1734995096382,0.88006074,192.38,192.32,23.3900376]
[1734995096683,0.88006074,192.38,192.34,23.3900376]
[1734995097067,6.2389,192.39,192.34,23.3900376]
[1734995097370,0.88006074,192.42,192.34,23.3900376]
[1734995097566,0.88006074,192.42,192.36,23.3900376]
[1734995098658,0.88006074,192.42,192.34,23.3900376]
[1734995100283,0.88006074,192.42,192.36,23.3900376]
[1734995100489,0.88006074,192.43,192.36,23.3900376]
[1734995101661,24.27009834,192.43,192.36,23.3900376]
[1734995102990,24.27009834,192.43,192.3,13.0]
[1734995102991,23.3900376,192.41,192.32,23.3900376]
[1734995103187,23.3900376,192.39,192.32,23.3900376]
[1734995103367,0.88006074,192.38,192.32,23.3900376]
[1734995103685,24.27009834,192.41,192.34,23.3900376]
[1734995103885,0.88006074,192.41,192.34,23.3900376]
[1734995104283,0.88006074,192.41,192.36,23.3900376]
[1734995104458,7.11896074,192.44,192.38,23.3900376]
[1734995105076,7.11896074,192.44,192.34,23.3900376]
[1734995105290,23.3900376,192.39,192.32,23.3900376]
[1734995105479,0.88006074,192.38,192.32,23.3900376]
[1734995105677,0.88006074,192.38,192.3,23.3900376]
[1734995106083,23.3900376,192.34,192.26,23.3900376]
[1734995106283,0.88006074,192.33,192.26,23.3900376]
[1734995106975,6.2389,192.34,192.28,23.3900376]
[1734995109097,0.88006074,192.33,192.28,23.3900376]
[1734995109393,23.3900376,192.29,192.22,23.3900376]
[1734995109690,0.88006074,192.28,192.22,23.3900376]
[1734995109890,23.3900376,192.26,192.19,23.3900376]
[1734995110085,0.88006074,192.25,192.19,23.3900376]
[1734995110270,23.3900376,192.31,192.23,23.3900376]
[1734995110466,0.88006074,192.3,192.23,23.3900376]
[1734995110667,0.88006074,192.3,192.24,23.3900376]
[1734995111073,24.27009834,192.3,192.22,23.3900376]
[1734995111270,23.3900376,192.28,192.2,43.3900376]
[1734995111479,0.88006074,192.27,192.2,43.3900376]
[1734995112878,23.3900376,192.3,192.22,23.3900376]
[1734995113076,1.6116,192.31,192.26,23.3900376]
[1734995113591,6.2389,192.34,192.28,23.3900376]
[1734995113767,0.88006074,192.35,192.3,23.3900376]
[1734995113964,1.6116,192.36,192.3,23.3900376]
[1734995114379,29.6221376,192.38,192.3,23.3900376]
[1734995114594,6.2321,192.38,192.32,23.3900376]
[1734995115064,23.3900376,192.36,192.28,23.3900376]
[1734995115269,0.88006074,192.35,192.28,23.3900376]
[1734995115487,0.88006074,192.35,192.26,23.3900376]
[1734995115987,0.88006074,192.35,192.28,23.3900376]
[1734995116681,23.3900376,192.34,192.26,23.3900376]
[1734995117006,23.3900376,192.32,192.24,23.3900376]
[1734995117211,2.49166074,192.33,192.26,23.3900376]
[1734995117384,24.27009834,192.36,192.28,23.3900376]
[1734995118913,23.3900376,192.32,192.24,23.3900376]
[1734995119076,0.88006074,192.31,192.24,23.3900376]
[1734995119393,0.88006074,192.31,192.26,23.3900376]
[1734995119595,0.88006074,192.33,192.26,23.3900376]
[1734995120189,24.27009834,192.36,192.3,23.3900376]
[1734995120493,0.88006074,192.36,192.3,23.3900376]
[1734995120802,7.8437,192.38,192.32,23.3900376]
[1734995121382,29.6221376,192.42,192.34,23.3900376]
[1734995121590,6.2321,192.42,192.36,23.3900376]
[1734995121790,23.3900376,192.4,192.32,23.3900376]
[1734995121986,0.88006074,192.39,192.32,23.3900376]
[1734995123503,0.88006074,192.41,192.36,23.3900376]
[1734995123675,1.6116,192.43,192.36,23.3900376]
[1734995123883,0.88006074,192.42,192.36,23.3900376]
[1734995124780,1.6116,192.43,192.38,23.3900376]
[1734995125282,24.27009834,192.45,192.38,23.3900376]
[1734995125493,6.6026,192.51,192.44,23.3900376]
[1734995125699,0.88006074,192.5,192.46,23.3900376]
[1734995125897,6.6026,192.51,192.46,23.3900376]
[1734995126208,0.88006074,192.54,192.48,23.3900376]
[1734995126505,0.88006074,192.55,192.48,23.3900376]
[1734995126813,23.3900376,192.51,192.44,23.3900376]
[1734995127021,23.3900376,192.51,192.35,25.314684]
[1734995127022,23.3900376,192.45,192.36,23.3900376]
[1734995127476,2.51526074,192.47,192.42,23.3900376]
[1734995127678,1.6352,192.47,192.42,23.3900376]
[1734995127893,1.6352,192.47,192.4,23.3900376]
[1734995128616,0.88006074,192.46,192.4,23.3900376]
[1734995129123,24.27009834,192.46,192.38,43.3900376]
[1734995129287,0.88006074,192.46,192.4,23.3900376]
[1734995129487,0.88006074,192.46,192.38,43.3900376]
[1734995129701,1.6352,192.47,192.4,23.3900376]
[1734995131112,0.88006074,192.46,192.4,23.3900376]
[1734995131626,23.3900376,192.45,192.36,23.3900376]
[1734995131812,23.3900376,192.41,192.34,23.3900376]
[1734995132127,0.88006074,192.4,192.32,23.3900376]
[1734995132921,25.0252376,192.37,192.3,23.3900376]
[1734995133101,0.88006074,192.36,192.28,23.3900376]
[1734995133282,1.6352,192.37,192.32,23.3900376]
[1734995133721,20.0,192.42,192.36,23.3900376]
[1734995133894,2.51526074,192.43,192.36,23.3900376]
[1734995135706,2.51526074,192.43,192.34,23.3900376]
[1734995135707,23.3900376,192.42,192.34,23.3900376]
[1734995135888,0.88006074,192.41,192.34,23.3900376]
[1734995136295,0.88006074,192.41,192.36,23.3900376]
[1734995136509,20.0,192.39,192.32,23.3900376]
[1734995136704,0.88006074,192.38,192.32,23.3900376]
[1734995137007,0.88006074,192.38,192.34,23.3900376]
[1734995137313,0.88006074,192.41,192.36,23.3900376]
[1734995137498,0.88006074,192.41,192.38,23.3900376]
[1734995138111,0.88006074,192.42,192.38,23.3900376]
[1734995138412,0.88006074,192.42,192.36,23.3900376]
[1734995139486,24.27009834,192.42,192.34,23.3900376]
[1734995141696,23.3900376,192.4,192.32,23.3900376]
[1734995141895,0.88006074,192.39,192.32,23.3900376]
[1734995142112,6.0555,192.38,192.32,23.3900376]
[1734995142302,0.88006074,192.37,192.32,23.3900376]
[1734995142704,20.0,192.35,192.28,23.3900376]
[1734995142894,1.5633,192.33,192.28,23.3900376]
[1734995143088,0.88006074,192.32,192.26,23.3900376]
[1734995143597,0.88006074,192.32,192.28,23.3900376]
[1734995144616,20.0,192.31,192.26,23.3900376]
[1734995144813,0.88006074,192.3,192.26,23.3900376]
[1734995145392,20.0,192.31,192.26,23.3900376]
[1734995145599,0.88006074,192.3,192.26,23.3900376]
[1734995145836,26.0555,192.29,192.24,23.3900376]
[1734995146003,26.0555,192.29,192.18,13.0081]
[1734995146004,0.88006074,192.28,192.22,23.3900376]
[1734995146410,20.0,192.25,192.2,23.3900376]
[1734995146613,0.88006074,192.24,192.18,23.3900376]
[1734995147616,25.340184,192.23,192.16,23.3900376]
[1734995147919,25.340184,192.23,192.14,23.3900376]
[1734995147920,30.32559834,192.22,192.14,23.3900376]
[1734995148694,20.0,192.19,192.14,23.3900376]
[1734995148929,6.93556074,192.22,192.18,23.3900376]
[1734995150419,6.0555,192.22,192.2,23.3900376]
[1734995150929,0.88006074,192.25,192.2,23.3900376]
[1734995151324,24.65694474,192.27,192.2,23.3900376]
[1734995152025,23.3900376,192.26,192.19,23.3900376]
[1734995152326,24.65694474,192.25,192.19,23.3900376]
[1734995152698,23.3900376,192.24,192.17,23.3900376]
[1734995152909,23.776884,192.22,192.17,23.3900376]
[1734995153114,0.88006074,192.21,192.17,23.3900376]
[1734995153334,24.65694474,192.23,192.17,23.3900376]
[1734995153693,0.88006074,192.23,192.19,23.3900376]
[1734995153901,0.88006074,192.28,192.21,23.3900376]
[1734995154102,0.88006074,192.28,192.23,23.3900376]
[1734995155226,0.88006074,192.28,192.21,23.3900376]
[1734995155425,23.3900376,192.27,192.21,23.3900376]
[1734995155602,0.88006074,192.28,192.11,20.0]
[1734995155603,23.3900376,192.25,192.19,23.3900376]
[1734995155804,24.65694474,192.24,192.17,23.3900376]
[1734995156199,24.65694474,192.24,192.19,23.3900376]
[1734995156430,23.3900376,192.23,192.15,23.3900376]
[1734995156626,23.776884,192.21,192.15,23.3900376]
[1734995156937,0.88006074,192.2,192.15,23.3900376]
[1734995157137,23.776884,192.19,192.15,23.3900376]
[1734995157346,0.88006074,192.2,192.15,23.3900376]
[1734995157536,0.88006074,192.22,192.17,23.3900376]
[1734995157842,0.88006074,192.22,192.15,23.3900376]
[1734995158143,23.776884,192.21,192.15,23.3900376]
[1734995158323,23.776884,192.19,192.13,23.3900376]
[1734995158522,0.88006074,192.18,192.13,23.3900376]
[1734995159120,23.776884,192.17,192.11,23.3900376]
[1734995159437,0.88006074,192.18,192.13,23.3900376]
[1734995159619,23.776884,192.17,192.13,23.3900376]
[1734995159824,0.88006074,192.18,192.13,23.3900376]
[1734995160635,24.65694474,192.19,192.13,23.3900376]
[1734995163715,48.04698234,192.19,192.11,23.3900376]
[1734995163918,23.776884,192.15,192.09,23.3900376]
[1734995164209,23.3900376,192.12,192.05,23.3900376]
[1734995164414,23.776884,192.09,192.03,23.3900376]
[1734995164615,2.45486074,192.1,192.05,23.3900376]
[1734995165135,23.776884,192.09,192.02,23.3900376]
[1734995165345,0.88006074,192.08,192.02,23.3900376]
[1734995165533,23.776884,192.07,192.02,23.3900376]
[1734995165841,0.88006074,192.06,192.01,24.0645989]
[1734995166010,23.776884,192.07,192.03,23.3900376]
[1734995166345,0.88006074,192.08,192.05,23.3900376]
[1734995166638,23.3900376,192.15,192.07,23.3900376]
[1734995166843,8.0559,192.18,192.12,23.3900376]
[1734995167016,0.88006074,192.17,192.12,23.3900376]
[1734995167217,8.0559,192.18,192.14,23.3900376]
[1734995168013,8.0559,192.18,192.08,13.0149]
[1734995168014,0.88006074,192.17,192.12,23.3900376]
[1734995168217,0.88006074,192.17,192.1,23.3900376]
[1734995168544,47.1669216,192.16,192.08,23.3900376]
[1734995168714,23.776884,192.14,192.08,23.3900376]
[1734995168917,0.88006074,192.13,192.08,23.3900376]
[1734995169130,23.776884,192.14,192.1,23.3900376]
[1734995169441,0.88006074,192.13,192.1,23.3900376]
[1734995170344,0.88006074,192.13,192.08,23.3900376]
[1734995170527,23.776884,192.12,192.06,23.3900376]
[1734995170728,0.88006074,192.11,192.06,23.3900376]
[1734995171846,23.776884,192.1,192.04,23.3900376]
[1734995172022,0.88006074,192.09,192.02,23.3900376]
[1734995172229,0.88006074,192.09,192.04,23.3900376]
[1734995172850,23.776884,192.08,192.02,23.3900376]
[1734995173152,0.88006074,192.07,192.02,23.3900376]
[1734995173349,23.776884,192.06,192.02,23.3900376]
[1734995173541,0.88006074,192.05,192.01,0.6745613]
[1734995173864,8.1678,192.08,192.04,23.3900376]
[1734995174242,1.5118,192.08,192.04,23.3900376]
[1734995176232,0.88006074,192.07,192.02,23.3900376]
[1734995176434,23.776884,192.06,192.02,23.3900376]
[1734995176653,0.88006074,192.05,192.01,0.6745613]
[1734995176836,23.776884,192.04,192.01,0.6745613]
[1734995177029,0.88006074,192.03,192.01,0.6745613]
[1734995177654,23.776884,192.02,192.01,0.6745613]
[1734995178846,23.776884,192.02,191.95,23.3900376]
[1734995179057,23.776884,192.0,191.95,23.3900376]
[1734995179242,0.88006074,191.99,191.95,23.3900376]
[1734995179555,0.88006074,192.02,191.97,23.3900376]
[1734995182650,0.88006074,192.02,191.99,23.3900376]
[1734995183032,0.88006074,192.02,191.97,23.3900376]
[1734995183428,0.88006074,192.02,191.95,23.3900376]
[1734995183634,23.776884,192.01,191.95,23.3900376]
[1734995183847,0.88006074,192.0,191.95,23.3900376]
[1734995184642,24.65694474,192.02,191.95,23.3900376]
[1734995185154,0.88006074,192.02,191.95,23.3900376]
[1734995185869,23.776884,192.01,191.95,23.3900376]
[1734995186047,0.88006074,192.0,191.93,23.3900376]
[1734995186363,0.88006074,192.0,191.95,23.3900376]
[1734995187162,0.88006074,192.02,191.97,23.3900376]
[1734995187387,23.3900376,192.07,191.99,23.3900376]
[1734995187679,0.88006074,192.06,191.99,23.3900376]
[1734995188458,23.3900376,192.03,191.95,23.3900376]
[1734995188641,23.776884,192.01,191.95,23.3900376]
[1734995188933,0.88006074,192.0,191.95,23.3900376]
[1734995189169,0.88006074,192.0,191.93,23.3900376]
[1734995189748,7.8223,191.98,191.87,13.0289]
[1734995190048,23.3900376,191.95,191.88,23.3900376]
[1734995190347,7.8223,191.98,191.92,23.3900376]
[1734995190552,0.88006074,191.97,191.84,37.2030181]
[1734995191065,24.27009834,191.97,191.9,23.3900376]
[1734995191265,23.776884,191.96,191.9,23.3900376]
[1734995191566,0.88006074,191.95,191.88,23.3900376]
[1734995191750,0.88006074,191.95,191.89,23.3900376]
[1734995192480,0.88006074,191.95,191.87,23.3900376]
[1734995192481,23.776884,191.94,191.87,23.3900376]
[1734995192642,23.776884,191.92,191.86,23.3900376]
[1734995192843,0.88006074,191.91,191.86,23.3900376]
[1734995193264,23.776884,191.94,191.89,23.3900376]
[1734995193442,0.88006074,191.93,191.9,23.3900376]
[1734995194548,23.776884,191.92,191.87,23.3900376]
[1734995194748,0.88006074,191.91,191.82,0.6745613]
[1734995195266,20.0,191.95,191.9,23.3900376]
[1734995195455,23.776884,191.96,191.91,23.3900376]
[1734995195776,0.88006074,191.97,191.92,23.3900376]
[1734995195958,7.8223,191.98,191.94,23.3900376]
[1734995196271,31.2123376,192.03,191.96,23.3900376]
[1734995196574,24.27009834,192.02,191.95,23.3900376]
[1734995196768,24.27009834,192.02,191.93,23.3900376]
[1734995197069,23.3900376,192.0,191.93,23.3900376]
[1734995197272,0.88006074,191.99,191.93,23.3900376]
[1734995198474,23.776884,191.98,191.91,23.3900376]
[1734995198682,0.88006074,191.97,191.91,23.3900376]
[1734995199277,23.776884,191.96,191.89,23.3900376]
[1734995199461,20.0,192.0,191.87,23.3900376]
[1734995199462,47.1669216,191.94,191.87,23.3900376]
[1734995199661,0.88006074,191.93,191.87,23.3900376]
[1734995199861,47.1669216,191.92,191.85,23.3900376]
[1734995200063,5.2088,191.98,191.87,23.3900376]
[1734995200064,23.776884,191.95,191.87,23.3900376]
[1734995200273,24.65694474,191.95,191.89,23.3900376]
[1734995200490,0.88006074,191.95,191.89,23.3900376]
[1734995200658,25.81789834,191.98,191.91,23.3900376]
[1734995200982,25.81789834,191.98,191.93,23.3900376]
[1734995200983,1.5478,191.98,191.93,23.3900376]
[1734995201154,6.5397,191.99,191.93,23.3900376]
[1734995201357,6.5397,191.99,191.95,23.3900376]
[1734995201677,6.5397,191.99,191.93,23.3900376]
[1734995201974,6.5397,191.99,191.91,23.3900376]
[1734995202168,24.27009834,191.98,191.91,23.3900376]
[1734995202372,23.3900376,191.96,191.89,23.3900376]
[1734995202579,23.776884,191.94,191.87,23.3900376]
[1734995202756,47.1669216,191.92,191.85,23.3900376]
[1734995202964,0.88006074,191.91,191.85,23.3900376]
[1734995203169,23.776884,191.9,191.83,23.3900376]
[1734995203653,23.776884,191.88,191.82,0.6745613]
[1734995203858,0.88006074,191.87,191.82,0.6745613]
[1734995204266,47.1669216,191.86,191.82,0.6745613]
[1734995204461,23.776884,191.84,191.82,0.6745613]
[1734995204660,24.27009834,191.83,191.82,0.6745613]
[1734995204862,48.04698234,191.83,191.82,0.6745613]
[1734995205073,0.88006074,191.83,191.82,0.6745613]
[1734995205261,0.88006074,191.84,191.82,0.6745613]
[1734995205757,24.65694474,191.86,191.82,0.6745613]
[1734995206265,0.88006074,191.86,191.82,0.6745613]
[1734995206785,0.88006074,191.87,191.82,24.0645989]
[1734995207386,0.88006074,191.88,191.82,24.0645989]
[1734995207576,6.5397,191.89,191.82,24.0645989]
[1734995207892,5.2091,191.98,191.63,0.6745613]
[1734995207893,20.0,191.73,191.63,0.6745613]
[1734995208063,24.3683476,191.72,191.63,0.6745613]
[1734995208257,0.97831,191.72,191.66,23.3900376]
[1734995208465,20.0,191.73,191.66,23.3900376]
[1734995208788,0.97807802,191.74,191.68,23.3900376]
[1734995208962,23.3900376,191.79,191.7,23.3900376]
[1734995209281,20.97782471,191.78,191.7,23.3900376]
[1734995209585,0.97782471,191.78,191.7,23.3900376]
[1734995209791,20.0,191.76,191.7,23.3900376]
[1734995210390,23.3900376,191.81,191.72,23.3900376]
[1734995210687,20.0,191.8,191.74,23.3900376]
[1734995211187,20.0,191.82,191.76,23.3900376]
[1734995211357,0.97755491,191.84,191.76,23.3900376]
[1734995211564,0.97755491,191.84,191.68,24.0704646]
[1734995211565,24.36756204,191.87,191.78,23.3900376]
[1734995212082,0.97752444,191.87,191.8,23.3900376]
[1734995212389,12.27280904,191.88,191.8,23.3900376]
[1734995213189,0.97735789,191.88,191.8,23.3900376]
[1734995213978,0.97735789,191.88,191.82,23.3900376]
[1734995214759,0.97735789,191.88,191.8,23.3900376]
[1734995215794,24.36739549,191.88,191.8,23.3900376]
[1734995215962,23.3900376,191.88,191.8,23.68268485]
[1734995216157,23.3900376,191.9,191.8,23.68268485]
[1734995216481,1.5599,191.97,191.8,23.68268485]
[1734995216482,23.3900376,191.94,191.86,23.3900376]
[1734995216657,23.3900376,191.94,191.81,13.0337]
[1734995216658,23.3900376,191.96,191.88,23.3900376]
[1734995218584,23.3900376,191.98,191.9,23.3900376]
[1734995218961,23.3900376,192.0,191.92,23.3900376]
[1734995219307,23.3900376,192.02,191.96,23.3900376]
[1734995219461,24.36642156,192.04,191.96,23.3900376]
[1734995219660,23.3900376,191.99,191.91,23.3900376]
[1734995219890,0.97638396,192.04,191.89,36.4182376]
[1734995219891,23.3900376,191.97,191.89,36.4182376]
[1734995220592,23.3900376,191.96,191.89,36.4182376]
[1734995220790,23.3900376,191.98,191.91,23.3900376]
[1734995221088,23.3900376,192.0,191.93,23.3900376]
[1734995221291,23.3900376,192.03,191.95,23.3900376]
[1734995221470,23.3900376,192.02,191.95,23.3900376]
[1734995221669,23.3900376,191.99,191.93,20.0]
[1734995221884,23.3900376,191.99,191.9,23.3900376]
[1734995222190,23.3900376,191.97,191.9,23.3900376]
[1734995222690,0.97675934,191.96,191.89,13.0282]
[1734995222883,23.3900376,191.95,191.86,23.3900376]
[1734995223062,0.9769308,191.94,191.86,23.3900376]
[1734995223263,23.3900376,191.95,191.86,23.3900376]
[1734995223464,27.09574199,191.94,191.86,26.11881607]
[1734995223759,26.11881607,191.94,191.86,26.11881607]
[1734995223962,26.11881607,191.92,191.86,26.11881607]
[1734995224161,26.11881607,191.92,191.84,39.15001607]
[1734995224389,26.11881607,191.9,191.82,26.11881607]
[1734995224586,6.0386,191.96,191.82,26.11881607]
[1734995224587,26.11881607,191.89,191.82,26.11881607]
[1734995224781,26.11881607,191.89,191.81,26.11881607]
[1734995224966,26.11881607,191.89,191.82,26.11881607]
[1734995225163,26.11881607,191.89,191.8,13.0342]
[1734995225164,26.11881607,191.89,191.81,26.11881607]
[1734995225363,26.11881607,191.88,191.81,26.11881607]
[1734995225571,26.11881607,191.86,191.8,13.0342]
[1734995225770,26.11881607,191.85,191.77,26.11881607]
[1734995226581,26.11881607,191.84,191.76,39.15591607]